bitfinex/quotes_ETHUSD_20250622
["timestamp","ask_amount","ask_price","bid_price","bid_amount"]
[1750564811321,0.37471352,2267.4,2267.3,2.64631941]
[1750564811886,0.37471352,2267.4,2267.1,2.64644837]
[1750564812107,13.99020454,2267.3,2266.7,1.996]
[1750564812275,21.41220454,2267.3,2267.2,2.64643613]
[1750564812626,8.1899,2267.3,2267.2,2.64643613]
[1750564812985,8.1899,2267.3,2267.1,2.64652173]
[1750564813194,9.04636135,2267.3,2267.2,2.64643613]
[1750564813797,9.04636135,2267.3,2267.1,2.64653443]
[1750564814195,22.26866589,2267.3,2267.1,2.64653443]
[1750564814426,14.84666589,2267.3,2267.1,2.64653443]
[1750564814595,22.26866589,2267.3,2267.1,2.64653443]
[1750564814803,22.26866589,2267.3,2267.2,2.64643613]
[1750564815003,22.86866589,2267.3,2267.2,2.64643613]
[1750564815833,22.85405565,2267.3,2267.2,2.64643613]
[1750564816631,23.08459066,2267.3,2267.2,2.64643613]
[1750564816868,23.08459066,2267.3,2267.1,2.64650389]
[1750564817031,2.34593042,2267.2,2266.9,1.996]
[1750564817183,2.34593042,2267.2,2267.0,2.64656616]
[1750564817383,2.34593042,2267.2,2266.9,4.64271089]
[1750564817598,2.34593042,2267.2,2267.0,2.6466547]
[1750564818584,2.44028612,2267.3,2267.2,2.64643613]
[1750564818790,9.00482477,2267.3,2267.1,2.64649754]
[1750564819005,9.00482477,2267.3,2267.0,2.64664674]
[1750564819006,8.40482477,2267.3,2267.0,2.64664674]
[1750564819233,8.40482477,2267.3,2266.9,2.6467775]
[1750564819440,8.40482477,2267.3,2267.1,2.64653981]
[1750564819587,10.60500905,2267.3,2267.1,2.64653981]
[1750564819788,10.60500905,2267.3,2267.0,2.64666011]
[1750564820301,7.421,2267.2,2267.0,2.6466696]
[1750564820519,7.421,2267.2,2267.1,2.64648745]
[1750564822022,7.421,2267.2,2267.0,2.64665175]
[1750564822322,8.51897226,2267.2,2267.0,2.64665175]
[1750564822489,8.51897226,2267.2,2267.1,2.64655286]
[1750564822690,7.421,2267.2,2267.1,2.64655286]
[1750564822888,0.23053501,2267.3,2267.2,2.64643613]
[1750564825341,0.23053501,2267.3,2267.2,3.44503613]
[1750564825544,0.23053501,2267.3,2267.2,3.48913962]
[1750564825853,0.23053501,2267.3,2267.2,8.14913722]
[1750564826057,0.23053501,2267.3,2267.2,9.18460494]
[1750564826359,0.37471352,2267.4,2267.3,2.64631941]
[1750564826851,0.37471352,2267.4,2267.3,12.64631941]
[1750564827052,0.37471352,2267.4,2267.3,2.64631941]
[1750564828457,0.37471352,2267.4,2267.3,2.69041676]
[1750564828610,0.37471352,2267.4,2267.3,3.84265512]
[1750564829476,0.37471352,2267.4,2267.3,14.68535199]
[1750564829650,0.37471352,2267.4,2267.3,15.19125512]
[1750564831261,0.37471352,2267.4,2267.3,15.63291707]
[1750564832722,0.2250067,2268.4,2268.3,4.01355275]
[1750564832952,0.47922078,2269.2,2269.1,13.46262017]
[1750564833115,0.47922078,2269.2,2269.1,22.89162017]
[1750564833718,0.47922078,2269.2,2269.1,2.64422017]
[1750564833917,0.47922078,2269.2,2268.5,2.64491955]
[1750564834152,0.815,2269.0,2268.7,2.64468638]
[1750564834316,1.27170785,2268.9,2268.8,2.64456981]
[1750564834663,0.815,2269.0,2268.9,2.64445325]
[1750564835154,1.29422078,2269.2,2269.1,2.64422017]
[1750564835800,0.47922078,2269.2,2269.1,2.64422017]
[1750564835966,0.47922078,2269.2,2269.1,4.63622017]
[1750564836150,0.47922078,2269.2,2269.1,15.49868784]
[1750564836357,0.47922078,2269.2,2269.1,16.65095588]
[1750564836556,0.47922078,2269.2,2269.1,17.20095588]
[1750564837411,0.47922078,2269.2,2269.1,24.66295588]
[1750564837903,0.47922078,2269.2,2269.1,24.66195588]
[1750564838467,0.47922078,2269.2,2269.1,24.10995588]
[1750564839010,0.47922078,2269.2,2269.1,24.65995588]
[1750564839355,0.47922078,2269.2,2269.1,24.11295588]
[1750564839962,0.47922078,2269.2,2269.1,24.66295588]
[1750564840158,0.47922078,2269.2,2269.1,14.65895588]
[1750564840358,0.47922078,2269.2,2269.1,24.12595588]
[1750564842492,0.47922078,2269.2,2269.1,24.12295588]
[1750564842968,0.47922078,2269.2,2269.1,14.65895588]
[1750564843166,0.47922078,2269.2,2269.1,4.63622017]
[1750564843573,1.26592078,2269.2,2269.1,2.64422017]
[1750564844585,1.26592078,2269.2,2269.0,2.64426154]
[1750564844815,1.26592078,2269.2,2269.0,2.64432995]
[1750564845002,1.26592078,2269.2,2268.9,1.992]
[1750564845201,1.08367837,2269.1,2269.0,2.64433671]
[1750564845605,1.26592078,2269.2,2269.1,2.64422017]
[1750564845916,1.26592078,2269.2,2269.0,2.64433671]
[1750564845917,1.26592078,2269.2,2269.0,2.64429703]
[1750564846078,1.26592078,2269.2,2268.9,4.63643645]
[1750564846475,1.26592078,2269.2,2269.1,2.64422017]
[1750564846704,1.26592078,2269.2,2269.0,2.6442899]
[1750564846906,1.26592078,2269.2,2269.1,2.64422017]
[1750564847678,1.26592078,2269.2,2269.0,2.64433112]
[1750564847679,1.26592078,2269.2,2269.0,2.64426564]
[1750564848097,1.26592078,2269.2,2268.9,1.992]
[1750564848321,1.26592078,2269.2,2269.0,2.64433452]
[1750564848522,1.26592078,2269.2,2268.5,10.0]
[1750564848822,0.7659,2269.0,2268.4,2.64503614]
[1750564849124,0.7659,2268.9,2268.3,15.23010808]
[1750564849312,0.7659,2268.9,2268.3,2.64507842]
[1750564849485,0.7659,2268.8,2268.5,2.64486198]
[1750564849683,0.7659,2268.8,2268.4,2.64497503]
[1750564849915,1.85492469,2268.8,2268.4,2.64497503]
[1750564850284,0.7659,2268.6,2267.9,1.992]
[1750564850519,0.7659,2268.6,2268.4,2.64494711]
[1750564851105,0.7659,2268.6,2268.0,2.64550264]
[1750564851291,10.33676289,2268.4,2267.9,1.992]
[1750564851501,0.7659,2268.4,2268.3,2.64515275]
[1750564852314,0.9963125,2268.4,2268.3,2.64515275]
[1750564854131,0.9963125,2268.4,2268.1,2.64534614]
[1750564854309,0.9963125,2268.4,2267.9,1.992]
[1750564854560,2.31752235,2268.4,2268.0,2.64544722]
[1750564854723,0.8183,2268.0,2267.6,2.64591316]
[1750564854887,0.8183,2267.8,2267.4,2.6461433]
[1750564855234,0.8183,2267.8,2267.2,2.031]
[1750564855416,0.8183,2267.6,2267.2,4.67737787]
[1750564855742,0.8183,2267.5,2267.2,2.031]
[1750564855892,0.8183,2267.5,2267.2,2.64638364]
[1750564856084,0.8183,2267.5,2267.1,2.64649204]
[1750564856425,0.8183,2267.5,2266.8,2.64682912]
[1750564856426,0.8183,2267.3,2266.8,2.64682912]
[1750564856649,3.46468245,2267.3,2266.7,2.64697632]
[1750564856987,0.55,2267.2,2266.7,2.64695958]
[1750564857228,0.8272,2267.1,2266.8,3.01514664]
[1750564857527,0.8272,2267.1,2267.0,2.6466696]
[1750564858344,0.8272,2267.1,2266.9,2.64673944]
[1750564858492,1.65952,2267.1,2266.8,0.36826478]
[1750564858929,1.65952,2267.1,2266.7,2.64691177]
[1750564859502,0.8272,2267.1,2266.6,2.031]
[1750564859727,8.3242,2267.1,2266.6,2.031]
[1750564859925,0.8272,2267.1,2267.0,2.6466696]
[1750564860093,7.498,2267.4,2266.9,2.64678636]
[1750564860299,7.498,2267.4,2267.3,2.64625486]
[1750564860549,0.8272,2267.6,2266.8,7.30690312]
[1750564860700,30.0,2268.3,2268.1,2.64532156]
[1750564861032,30.0,2268.3,2266.7,10.0]
[1750564861033,2.64526937,2268.2,2267.2,2.64640646]
[1750564861332,0.8272,2267.6,2267.3,2.6463159]
[1750564861549,0.8272,2267.6,2267.5,2.64608599]
[1750564861846,0.44886139,2268.2,2267.7,2.64584675]
[1750564861847,0.8272,2267.9,2267.7,2.64584675]
[1750564862014,0.8272,2267.9,2267.6,2.64592703]
[1750564862216,0.8272,2267.9,2267.7,2.64583937]
[1750564862536,1.66142,2267.9,2267.7,2.64583937]
[1750564862926,1.66142,2267.9,2267.6,2.64594568]
[1750564863319,1.66142,2267.9,2267.7,2.64579085]
[1750564863842,1.66142,2267.9,2267.5,2.032]
[1750564864027,1.66142,2267.9,2267.5,4.67807992]
[1750564864340,1.18220057,2267.8,2267.5,2.032]
[1750564864515,1.18220057,2267.8,2267.4,2.64620001]
[1750564864843,1.18220057,2267.8,2267.3,2.64626135]
[1750564865138,8.3382,2267.9,2267.8,2.64573595]
[1750564865515,0.8272,2267.9,2267.8,2.64573595]
[1750564865720,7.51,2268.1,2268.0,2.64541981]
[1750564865932,11.51,2268.1,2267.8,2.64572625]
[1750564866129,11.00543031,2268.1,2267.8,2.64572625]
[1750564866446,11.00543031,2268.1,2267.7,2.6457985]
[1750564866844,0.7922,2267.9,2267.6,2.032]
[1750564867042,0.7922,2267.9,2267.6,4.67787918]
[1750564867510,0.7922,2267.9,2267.6,2.032]
[1750564867713,0.23045429,2267.8,2267.6,2.032]
[1750564868246,7.73845429,2267.8,2267.6,2.032]
[1750564869357,8.85607248,2267.8,2267.5,2.64606696]
[1750564869573,7.502,2267.7,2267.6,2.64589067]
[1750564869926,0.23045429,2267.8,2267.7,2.64585262]
[1750564870136,7.73245429,2267.8,2267.2,2.032]
[1750564870336,7.73245429,2267.8,2267.4,2.6461828]
[1750564870510,2.09500601,2267.8,2267.5,2.64608599]
[1750564870711,10.14388124,2267.7,2267.0,4.67865359]
[1750564870910,7.498,2267.7,2267.3,2.64625062]
[1750564871346,2.09500601,2267.8,2267.0,2.07610676]
[1750564871529,7.497,2267.7,2267.6,2.64589244]
[1750564871735,7.497,2267.7,2267.0,12.032]
[1750564872061,7.497,2267.7,2267.4,2.64620025]
[1750564872249,7.497,2267.7,2267.2,2.6463822]
[1750564872449,0.7813,2267.6,2267.2,2.64643613]
[1750564873119,0.7813,2267.6,2267.3,2.64631645]
[1750564873357,0.7813,2267.3,2266.4,2.032]
[1750564873547,0.7813,2267.3,2267.1,2.64647942]
[1750564873749,7.506,2267.2,2267.0,2.6466171]
[1750564873974,7.505,2267.1,2267.0,2.64655389]
[1750564874285,7.505,2267.1,2266.9,2.64673103]
[1750564874466,7.505,2267.1,2266.5,2.69133786]
[1750564874646,0.7813,2267.3,2267.1,2.64654822]
[1750564875070,7.502,2267.2,2266.7,2.64697597]
[1750564875268,7.502,2267.2,2266.7,2.64696566]
[1750564875473,10.0,2267.1,2266.6,2.64708469]
[1750564875672,10.0,2267.1,2266.6,2.64704617]
[1750564875872,7.501,2267.0,2266.6,2.64704617]
[1750564876050,7.501,2267.0,2266.7,2.64700697]
[1750564876251,7.501,2267.0,2266.6,2.64711367]
[1750564876584,18.26,2266.9,2266.4,4.67928997]
[1750564876781,8.26,2266.9,2266.4,2.032]
[1750564876992,0.759,2266.5,2266.0,2.64773031]
[1750564877161,7.5,2266.4,2266.2,2.64750535]
[1750564877356,7.5,2266.4,2265.9,2.64792599]
[1750564877574,7.5,2266.4,2266.0,2.64777168]
[1750564877961,7.5,2266.4,2266.1,2.64770729]
[1750564878148,7.5,2266.4,2266.0,2.64778408]
[1750564878468,7.5,2266.4,2266.3,2.64748709]
[1750564878800,17.5,2266.4,2266.3,2.64748709]
[1750564879095,17.5,2266.4,2266.2,2.64756079]
[1750564879468,17.5,2266.4,2266.0,0.36839479]
[1750564879773,0.759,2266.3,2266.0,3.01622506]
[1750564879969,0.759,2266.3,2266.2,2.64760391]
[1750564880345,2.64676757,2267.0,2266.4,2.64735416]
[1750564880346,0.759,2267.0,2266.4,2.64735416]
[1750564880549,0.759,2267.6,2266.8,0.7922]
[1750564880777,8.269,2267.6,2266.9,2.07711548]
[1750564880954,9.11894543,2267.6,2267.3,2.64631229]
[1750564881143,9.11894543,2267.6,2267.0,2.6466383]
[1750564881347,40.15808689,2267.5,2266.9,2.64672528]
[1750564881605,10.15808689,2267.5,2266.9,2.64672528]
[1750564881884,0.759,2267.2,2266.9,2.64676026]
[1750564882100,7.512,2267.1,2266.9,2.64678134]
[1750564882464,0.759,2267.2,2267.1,2.64655286]
[1750564882793,7.511,2267.2,2267.1,2.64655286]
[1750564882965,7.74146163,2267.2,2267.1,2.64655286]
[1750564883164,0.23046163,2267.2,2267.1,2.64655286]
[1750564887059,0.23046163,2267.2,2267.0,2.64661338]
[1750564887289,0.23046163,2267.2,2267.1,2.64655286]
[1750564887584,0.23046163,2267.2,2267.0,2.64663237]
[1750564888087,0.23046163,2267.2,2267.1,2.64655286]
[1750564888289,0.23046163,2267.2,2267.1,3.40085286]
[1750564888960,7.506,2267.5,2267.4,2.64620269]
[1750564889306,7.7364417,2267.5,2267.4,2.64620269]
[1750564891354,0.2304417,2267.5,2267.4,2.64620269]
[1750564891559,0.2304417,2267.5,2267.4,3.17986356]
[1750564891755,0.8015,2267.9,2267.8,2.64573595]
[1750564891973,8.2955,2267.9,2267.4,0.53366087]
[1750564892199,7.493,2267.8,2267.2,2.64642925]
[1750564892521,1.03192235,2267.9,2267.6,2.6459178]
[1750564892727,7.493,2267.8,2267.1,0.7543]
[1750564892914,7.493,2267.8,2267.4,2.64610514]
[1750564893111,0.7524,2267.6,2267.2,2.6463546]
[1750564893322,1.08732629,2267.5,2267.3,2.6463091]
[1750564893992,1.08732629,2267.5,2267.3,2.64631261]
[1750564894189,0.7524,2267.6,2267.3,2.64625088]
[1750564894408,7.493,2267.5,2267.3,2.64625088]
[1750564895120,0.7524,2267.6,2267.3,2.64625088]
[1750564895328,7.489,2267.4,2267.3,2.64625088]
[1750564895533,7.489,2267.4,2267.2,2.64637851]
[1750564895828,7.489,2267.4,2267.3,2.64631941]
[1750564896718,10.7524,2267.6,2267.4,2.64613793]
[1750564896891,7.483,2267.5,2267.3,2.64627173]
[1750564897224,7.483,2267.4,2267.3,2.64627173]
[1750564897985,7.482,2267.4,2267.3,2.64627173]
[1750564898391,7.479,2267.4,2267.3,2.64627173]
[1750564900027,0.7524,2267.6,2267.5,2.64608599]
[1750564900327,0.23042235,2267.9,2267.4,2.64620269]
[1750564900646,0.23042235,2267.9,2267.7,2.64578403]
[1750564900807,0.23042235,2267.9,2267.8,2.64573595]
[1750564901913,0.23042235,2267.9,2267.4,2.044]
[1750564901914,10.23042235,2267.9,2267.4,2.044]
[1750564902122,0.7806,2267.8,2266.9,0.7578]
[1750564902428,0.7806,2267.8,2267.4,2.64611863]
[1750564902995,0.7806,2267.8,2267.5,2.64601479]
[1750564903590,7.476,2267.7,2267.2,2.64643613]
[1750564903790,0.7806,2267.8,2267.6,2.64596288]
[1750564904020,7.473,2267.7,2267.6,2.64596288]
[1750564904221,7.473,2267.7,2267.0,2.044]
[1750564904421,7.473,2267.7,2267.4,2.64613097]
[1750564905025,7.473,2267.7,2267.5,2.64607601]
[1750564905239,0.7806,2267.8,2267.0,4.69065974]
[1750564905421,8.2546,2267.8,2267.5,2.64601325]
[1750564906132,0.7806,2267.5,2266.9,2.044]
[1750564906348,0.7806,2267.5,2266.9,2.64668611]
[1750564906349,0.7806,2267.3,2266.9,2.64668611]
[1750564906498,0.7806,2267.3,2266.8,2.64681444]
[1750564906824,2.88247388,2267.3,2266.8,2.64681444]
[1750564907494,0.23046583,2267.2,2266.8,2.64679587]
[1750564907922,0.55,2267.1,2266.6,2.64707206]
[1750564908093,8.2791,2267.0,2266.6,2.64711874]
[1750564908606,7.469,2266.9,2266.8,2.64688001]
[1750564908998,7.469,2266.9,2266.7,2.64696174]
[1750564909428,7.469,2266.9,2266.8,2.64690312]
[1750564909799,7.469,2266.9,2266.7,2.64696781]
[1750564909996,7.469,2266.9,2266.5,2.64725347]
[1750564910253,7.469,2266.9,2266.6,2.64712977]
[1750564911121,0.55,2266.8,2266.1,0.7708]
[1750564911340,18.18723123,2266.9,2266.1,0.7708]
[1750564911511,18.18723123,2266.9,2266.5,2.64714167]
[1750564911932,10.0,2266.8,2266.1,3.4184789]
[1750564912106,17.466,2266.8,2266.5,2.64724817]
[1750564912311,17.466,2266.8,2266.6,2.64707519]
[1750564912525,17.466,2266.8,2266.7,2.64701989]
[1750564912838,17.90993626,2266.8,2266.6,2.64707751]
[1750564913001,10.44393626,2266.8,2266.6,2.64707751]
[1750564913202,0.8081,2267.0,2266.9,2.64678636]
[1750564913396,8.2701,2267.0,2266.8,2.64684441]
[1750564913635,8.2701,2267.0,2266.9,2.64678636]
[1750564914173,10.23046583,2267.2,2266.9,2.64678636]
[1750564914174,0.44248685,2267.1,2266.9,2.64678636]
[1750564914453,7.69746583,2267.2,2266.9,2.91142111]
[1750564914602,7.69746583,2267.2,2267.1,2.64655286]
[1750564914813,7.69746583,2267.2,2266.9,2.64668386]
[1750564915266,0.23046583,2267.2,2267.1,2.64655286]
[1750564917356,0.23046583,2267.2,2266.6,12.64711673]
[1750564917357,0.23046583,2267.2,2266.6,10.8162]
[1750564917557,0.23046583,2267.2,2266.6,14.17954283]
[1750564917847,0.23046583,2267.2,2266.9,2.64669195]
[1750564918047,0.23046583,2267.2,2266.8,2.64685505]
[1750564918256,0.8074,2267.1,2266.9,2.64671669]
[1750564918437,0.8074,2267.1,2266.9,2.64670253]
[1750564919240,1.66298658,2267.1,2266.8,2.6468469]
[1750564919541,1.66298658,2267.1,2266.7,2.64694718]
[1750564919737,0.55,2267.0,2266.4,0.8162]
[1750564919943,7.507,2266.9,2266.5,2.64718688]
[1750564920671,7.507,2266.9,2266.6,2.64713668]
[1750564922077,7.507,2266.9,2265.8,11.3604]
[1750564922078,0.788,2266.7,2265.8,11.3604]
[1750564922383,10.55,2266.6,2266.1,2.64761143]
[1750564922535,7.506,2266.5,2266.1,2.64761143]
[1750564922940,0.788,2266.4,2266.1,2.64761143]
[1750564923365,7.503,2266.3,2266.2,2.6475996]
[1750564923576,0.23052941,2266.5,2266.4,2.64737027]
[1750564923880,1.40558658,2267.1,2267.0,2.6466696]
[1750564923881,0.788,2267.1,2267.0,2.6466696]
[1750564924178,7.511,2267.1,2266.7,0.7664]
[1750564924380,7.511,2267.1,2267.0,2.64661231]
[1750564925174,7.511,2267.1,2266.7,0.7664]
[1750564925388,7.511,2267.1,2267.0,2.6466696]
[1750564925897,7.511,2267.1,2266.9,2.6467336]
[1750564926179,7.511,2267.1,2267.0,2.6466696]
[1750564926942,0.23046775,2267.2,2267.0,2.6466696]
[1750564927142,7.501,2267.1,2267.0,2.6466696]
[1750564928474,7.495,2267.1,2267.0,2.6466696]
[1750564930213,0.23046775,2267.2,2267.0,2.6466696]
[1750564930388,7.492,2267.1,2267.0,2.6466696]
[1750564930711,0.23046775,2267.2,2267.1,2.64655286]
[1750564931410,7.508,2267.6,2267.5,2.64608599]
[1750564931790,13.47110632,2268.0,2267.5,2.64608599]
[1750564931993,7.51,2267.9,2267.6,2.64596556]
[1750564932182,7.51,2267.8,2267.6,2.64596556]
[1750564932382,8.36660164,2267.8,2267.6,2.64596556]
[1750564932578,8.36660164,2267.8,2267.7,2.64585262]
[1750564932783,8.36660164,2267.8,2267.6,2.64596556]
[1750564932784,0.78041642,2267.9,2267.8,2.64573595]
[1750564933084,10.0,2267.8,2267.7,2.64580533]
[1750564933412,8.28741642,2267.9,2267.6,2.64596556]
[1750564933916,10.0,2267.8,2267.6,2.64596556]
[1750564934114,10.0,2267.8,2267.5,2.64605013]
[1750564934324,10.0,2267.6,2267.5,2.64605013]
[1750564934616,10.0,2267.6,2267.4,2.64614557]
[1750564934815,0.7739,2267.5,2267.1,3.40331454]
[1750564935017,16.626516,2267.9,2267.6,2.64589629]
[1750564935018,0.23041642,2267.9,2267.6,2.64589629]
[1750564935217,0.23041642,2267.9,2267.8,2.64573595]
[1750564935597,10.23041642,2267.9,2267.8,2.64573595]
[1750564935918,0.23041642,2267.9,2267.8,2.64573595]
[1750564936126,10.23041642,2267.9,2267.8,2.64573595]
[1750564936307,0.23041642,2267.9,2267.8,2.64573595]
[1750564936509,7.75741642,2267.9,2267.8,2.64573595]
[1750564936692,7.75641642,2267.9,2267.8,2.64573595]
[1750564937115,0.23041642,2267.9,2267.8,2.64573595]
[1750564937325,10.23041642,2267.9,2267.8,2.64573595]
[1750564937827,7.75441642,2267.9,2267.8,2.64573595]
[1750564939230,0.23041642,2267.9,2267.8,2.64573595]
[1750564939427,7.75141642,2267.9,2267.8,2.64573595]
[1750564940832,18.60653806,2267.9,2267.1,2.7692]
[1750564940998,11.08553806,2267.9,2267.8,2.64573595]
[1750564941202,10.23041642,2267.9,2267.8,2.64573595]
[1750564941406,17.74841642,2267.9,2267.7,2.64580358]
[1750564941819,10.23041642,2267.9,2267.8,2.64573595]
[1750564942020,17.74941642,2267.9,2267.8,2.64573595]
[1750564944225,10.23041642,2267.9,2267.8,2.64573595]
[1750564945261,0.55,2268.5,2267.8,2.64573595]
[1750564945262,0.47922078,2269.2,2268.9,2.64438275]
[1750564945408,4.0,2269.0,2268.9,2.64445325]
[1750564945828,11.542,2269.0,2268.9,2.64445325]
[1750564946141,17.542,2269.0,2268.9,2.64445325]
[1750564946350,19.34412208,2269.0,2268.8,2.64450261]
[1750564946519,7.541,2268.9,2268.8,2.64450261]
[1750564946713,11.80212208,2269.0,2268.9,2.64445325]
[1750564947021,19.34212208,2269.0,2268.9,2.64445325]
[1750564947221,10.0,2269.0,2268.9,2.64445325]
[1750564947403,7.539,2269.0,2268.9,2.64445325]
[1750564948851,0.47922078,2269.2,2269.1,2.64422017]
[1750564949038,8.01622078,2269.2,2269.1,2.64422017]
[1750564950366,0.47922078,2269.2,2269.1,5.50932017]
[1750564950565,0.47922078,2269.2,2269.1,5.55338926]
[1750564950731,0.47922078,2269.2,2269.1,6.37316002]
[1750564951129,0.47922078,2269.2,2269.1,6.32909093]
[1750564951328,0.47922078,2269.2,2269.1,11.03315155]
[1750564951526,0.47922078,2269.2,2269.1,10.98909093]
[1750564952161,1.19814108,2270.0,2269.9,13.26758825]
[1750564952363,1.19814108,2270.0,2269.9,16.2435634]
[1750564952733,1.19814108,2270.0,2269.9,4.1945634]
[1750564952937,1.19814108,2270.0,2269.9,6.2435634]
[1750564953355,1.19814108,2270.0,2269.9,5.31658825]
[1750564954830,1.19814108,2270.0,2269.9,2.64328825]
[1750564955869,1.96454108,2270.0,2269.7,2.048]
[1750564956072,1.96454108,2270.0,2269.8,2.6434047]
[1750564956281,1.96454108,2270.0,2269.9,2.64328825]
[1750564956443,1.96454108,2270.0,2269.7,2.64343516]
[1750564956960,1.96454108,2270.0,2269.8,2.64338005]
[1750564957158,1.96454108,2270.0,2269.7,2.64346445]
[1750564957359,2.4252904,2270.0,2269.5,2.048]
[1750564957567,1.96454108,2270.0,2269.8,2.64332936]
[1750564957878,9.52954108,2270.0,2269.8,2.64332936]
[1750564958392,7.563,2269.9,2269.7,2.64348019]
[1750564958541,7.563,2269.9,2269.8,2.6434047]
[1750564958741,7.563,2269.9,2269.5,2.64368228]
[1750564959043,0.95275411,2269.8,2269.5,2.64368228]
[1750564959443,0.95275411,2269.8,2269.4,2.048]
[1750564959640,0.95275411,2269.8,2269.7,2.64352117]
[1750564960378,7.56,2269.8,2269.7,2.64346103]
[1750564961184,7.56,2269.8,2269.6,2.64359882]
[1750564961477,7.56,2269.8,2269.4,4.69182023]
[1750564961647,7.56,2269.8,2269.5,2.64374838]
[1750564961846,7.56,2269.8,2269.7,2.64352117]
[1750564962078,1.96454108,2270.0,2269.9,2.64328825]
[1750564962386,19.51854108,2270.0,2269.9,2.64328825]
[1750564962581,21.52539519,2270.0,2269.9,2.64328825]
[1750564962881,21.52539519,2270.0,2269.7,2.64347106]
[1750564963576,13.97139519,2270.0,2269.9,2.64328825]
[1750564963777,21.52539519,2270.0,2269.7,2.64344832]
[1750564963980,21.52539519,2270.0,2269.7,2.6434554]
[1750564964151,2.15253952,2269.9,2269.7,2.6434554]
[1750564964347,2.15253952,2269.9,2269.0,13.40719619]
[1750564964700,11.97643952,2269.9,2269.6,2.64363583]
[1750564964983,11.97643952,2269.9,2269.5,2.64369373]
[1750564965682,11.97643952,2269.9,2269.8,2.6434047]
[1750564965883,19.52543952,2269.9,2269.8,2.6434047]
[1750564966387,17.549,2269.9,2269.7,2.64348394]
[1750564967785,17.549,2269.9,2269.6,2.64357748]
[1750564968491,0.8066,2269.8,2269.4,2.64387057]
[1750564968662,0.8066,2269.8,2269.6,2.64363715]
[1750564968862,0.8066,2269.8,2269.5,2.64369818]
[1750564969063,2.78499827,2269.8,2269.5,2.64369818]
[1750564970154,2.78499827,2269.8,2269.6,2.64363555]
[1750564971204,3.23343527,2269.8,2269.6,2.64363555]
[1750564971910,3.23343527,2269.8,2269.7,2.64352117]
[1750564972119,1.42838267,2270.0,2269.8,2.6434047]
[1750564972120,2.18278267,2270.0,2269.8,2.6434047]
[1750564972262,7.534,2269.9,2269.8,2.6434047]
[1750564972467,7.536,2269.9,2269.8,2.6434047]
[1750564973187,1.42838267,2270.0,2269.9,2.64328825]
[1750564973388,8.96138267,2270.0,2269.8,2.64334681]
[1750564973686,13.39774248,2269.9,2269.3,2.048]
[1750564973892,10.7544,2269.9,2269.4,2.64387062]
[1750564974086,7.539,2269.8,2269.3,2.048]
[1750564974293,7.539,2269.8,2269.4,2.64387062]
[1750564974489,7.539,2269.8,2269.3,2.048]
[1750564974490,12.34428951,2269.8,2269.3,2.6439192]
[1750564974678,9.70079209,2269.8,2269.4,2.64386565]
[1750564975083,9.70079209,2269.8,2269.2,2.64410364]
[1750564975281,7.539,2269.8,2269.7,2.64352117]
[1750564975765,7.542,2269.8,2269.7,2.64346004]
[1750564976786,0.7544,2269.9,2269.7,2.64346004]
[1750564977110,0.7544,2269.9,2269.4,0.7782]
[1750564977111,1.42838267,2270.0,2269.9,2.64328825]
[1750564977277,18.96638267,2270.0,2269.9,2.64328825]
[1750564977669,18.96438267,2270.0,2269.9,2.64328825]
[1750564978702,8.96438267,2270.0,2269.9,2.64328825]
[1750564978908,1.42838267,2270.0,2269.9,2.64328825]
[1750564979203,8.96438267,2270.0,2269.9,2.64328825]
[1750564979372,1.3107,2269.7,2268.5,0.8035]
[1750564979713,0.7607,2269.2,2268.5,2.6448445]
[1750564979865,30.0,2269.0,2268.5,2.6448445]
[1750564980069,21.29815404,2269.1,2268.6,2.64479317]
[1750564980271,0.7607,2269.2,2268.3,0.04408173]
[1750564980513,0.7607,2269.2,2268.3,2.64506452]
[1750564980712,7.583,2269.1,2268.8,2.64454864]
[1750564980998,7.583,2269.1,2268.5,0.04407639]
[1750564981203,7.583,2269.1,2268.8,2.64446467]
[1750564983107,7.583,2269.1,2268.6,2.64476415]
[1750564983108,0.8285,2268.7,2267.7,0.8214]
[1750564983309,2.64523553,2268.3,2267.7,4.60773719]
[1750564983475,7.585,2268.2,2267.7,3.78633719]
[1750564983675,3.47394658,2268.1,2267.5,2.64601851]
[1750564983928,3.47394658,2268.1,2267.4,5.53657577]
[1750564984207,3.47394658,2268.1,2266.6,7.588]
[1750564984208,0.8285,2268.1,2267.2,2.64642552]
[1750564984421,0.8285,2267.7,2267.0,2.069]
[1750564984596,7.586,2267.6,2267.0,2.069]
[1750564984818,10.23198349,2267.6,2267.0,5.00466222]
[1750564985104,0.8285,2267.7,2267.0,2.069]
[1750564985308,8.137,2267.6,2267.0,2.069]
[1750564985485,8.137,2267.6,2266.7,13.23193283]
[1750564985486,11.22247788,2267.6,2266.7,10.585]
[1750564985688,2.64618145,2267.5,2266.8,2.64682587]
[1750564985880,2.64626782,2267.4,2266.8,2.64682587]
[1750564986107,2.64626782,2267.4,2266.8,4.52376148]
[1750564986692,0.55,2267.4,2266.9,2.6467575]
[1750564986892,3.19631741,2267.4,2266.8,2.64687502]
[1750564987198,2.64632927,2267.3,2266.7,2.64696411]
[1750564987403,7.589,2267.2,2266.7,2.64696411]
[1750564988120,0.8285,2267.1,2266.7,2.64696411]
[1750564988325,3.19677042,2267.0,2266.6,2.069]
[1750564988624,0.55,2267.0,2266.6,4.71609138]
[1750564988814,0.55,2267.0,2266.5,2.64721491]
[1750564989420,0.55,2267.0,2266.4,2.64735931]
[1750564989623,10.55,2266.8,2266.3,2.64741041]
[1750564989866,7.583,2266.7,2266.3,2.64741041]
[1750564990188,0.55,2266.6,2266.2,2.069]
[1750564990387,3.41785925,2266.5,2265.9,2.64792175]
[1750564990591,3.41785925,2266.5,2265.7,2.64811986]
[1750564990592,2.64762942,2266.2,2265.7,2.64811986]
[1750564990832,7.591,2266.1,2265.6,2.07]
[1750564991001,8.021934,2266.1,2265.6,2.07]
[1750564991325,8.021934,2266.1,2265.6,2.64825863]
[1750564991326,0.7705,2266.0,2265.6,2.64825863]
[1750564991503,0.7705,2266.0,2265.6,2.64830183]
[1750564991899,0.55,2265.9,2265.4,2.64846154]
[1750564992100,0.55,2265.9,2265.3,2.64862076]
[1750564992101,3.19802957,2265.9,2265.3,2.64859704]
[1750564992523,3.19802957,2265.9,2264.9,10.0]